bitfinex-derivatives/quotes_BTCF0:USTF0_20251030
["timestamp","ask_amount","ask_price","bid_price","bid_amount"]
[1761784641530,0.77717108,110540.0,110530.0,0.22006151]
[1761784643331,0.77717108,110540.0,110530.0,0.22005688]
[1761784650736,0.0449,110530.0,110520.0,0.91898503]
[1761784651431,0.4057,110530.0,110520.0,0.08336815]
[1761784651734,0.59225498,110530.0,110520.0,0.02423815]
[1761784652339,0.0449,110520.0,110510.0,0.10252423]
[1761784652538,0.71838,110520.0,110510.0,0.10252423]
[1761784653226,0.71838,110520.0,110510.0,0.07027815]
[1761784653838,0.72909,110520.0,110510.0,0.07027815]
[1761784654039,0.73209,110520.0,110510.0,0.07027815]
[1761784655137,0.73209,110520.0,110510.0,0.02423815]
[1761784655326,0.89422688,110520.0,110510.0,0.02423815]
[1761784655526,0.94422688,110520.0,110510.0,0.02423815]
[1761784655729,0.73209,110520.0,110510.0,0.02423815]
[1761784656530,0.73209,110520.0,110510.0,0.04596815]
[1761784657536,0.73209,110520.0,110510.0,0.06879815]
[1761784658037,0.7565081,110520.0,110510.0,0.04456]
[1761784659430,0.7565081,110520.0,110500.0,0.20869811]
[1761784659632,0.04432,110510.0,110500.0,0.25325811]
[1761784662143,0.04532,110510.0,110500.0,0.25325811]
[1761784665245,0.04532,110510.0,110500.0,0.22901996]
[1761784668145,0.40612,110510.0,110500.0,0.22901996]
[1761784670145,0.40612,110510.0,110500.0,0.06688308]
[1761784670445,0.04532,110510.0,110500.0,0.22901996]
[1761784671049,0.04532,110510.0,110500.0,0.58981996]
[1761784671239,0.04532,110510.0,110500.0,0.61405811]
[1761784671543,0.358,110510.0,110500.0,0.61405811]
[1761784672245,0.04532,110510.0,110500.0,0.61405811]
[1761784672546,0.358,110510.0,110500.0,0.61405811]
[1761784672938,0.04532,110510.0,110500.0,0.61405811]
[1761784673135,0.04532,110510.0,110500.0,0.70455301]
[1761784673136,0.001,110510.0,110500.0,0.70455301]
[1761784673331,0.001,110510.0,110500.0,1.01995301]
[1761784674242,0.001,110510.0,110500.0,1.05219909]
[1761784674640,0.7422181,110530.0,110520.0,0.05793]
[1761784674841,0.7422181,110530.0,110520.0,0.22006688]
[1761784675443,0.05503,110520.0,110510.0,0.02173]
[1761784675642,0.4402481,110520.0,110510.0,0.02173]
[1761784676050,0.04432,110510.0,110500.0,0.09212123]
[1761784676347,0.7178,110510.0,110500.0,0.09112123]
[1761784677049,0.7178,110510.0,110500.0,0.06688308]
[1761784678142,0.7178,110510.0,110500.0,0.09112123]
[1761784678541,0.7188,110510.0,110500.0,0.09112123]
[1761784680345,0.88093688,110510.0,110500.0,0.08212815]
[1761784680538,0.88729688,110510.0,110500.0,0.06879815]
[1761784680739,0.72516,110510.0,110500.0,0.06879815]
[1761784681453,0.7432181,110510.0,110500.0,0.05793]
[1761784681654,0.04432,110500.0,110490.0,0.48466038]
[1761784682250,0.04432,110500.0,110490.0,0.4524143]
[1761784682636,0.04432,110500.0,110490.0,0.0916143]
[1761784682847,0.04432,110500.0,110490.0,0.08369815]
[1761784683046,0.40512,110500.0,110490.0,0.04696815]
[1761784683246,0.4295381,110500.0,110490.0,0.04696815]
[1761784684052,0.59167498,110500.0,110490.0,0.02523815]
[1761784684366,0.6008292,110500.0,110490.0,0.001]
[1761784685156,0.62167498,110500.0,110490.0,0.001]
[1761784688864,0.67863085,110500.0,110490.0,0.001]
[1761784689245,0.04488,110480.0,110470.0,0.08300256]
[1761784689463,0.71836,110480.0,110470.0,0.05876441]
[1761784689646,0.71836,110480.0,110470.0,0.08300256]
[1761784690346,0.71836,110480.0,110470.0,0.05876441]
[1761784690657,0.71836,110480.0,110470.0,0.06076441]
[1761784690857,0.71836,110480.0,110470.0,0.06176441]
[1761784691459,0.71836,110480.0,110470.0,0.08600256]
[1761784691658,0.71836,110480.0,110470.0,0.09514]
[1761784692165,1.29472688,110480.0,110470.0,0.00309441]
[1761784692362,0.05124,110470.0,110460.0,0.02423815]
[1761784692666,0.60689688,110470.0,110460.0,0.02423815]
[1761784692863,0.04411,110460.0,110450.0,0.03224608]
[1761784693064,0.04411,110460.0,110450.0,0.02422709]
[1761784693065,0.87972688,110460.0,110450.0,0.02422709]
[1761784693267,0.87979791,110460.0,110450.0,0.02422709]
[1761784693564,0.05047,110450.0,110440.0,0.07766608]
[1761784693764,0.57350129,110450.0,110440.0,0.07766608]
[1761784694155,0.57350129,110450.0,110440.0,0.04542]
[1761784694461,0.40936441,110450.0,110440.0,0.05904]
[1761784694662,0.40936441,110450.0,110440.0,0.06104]
[1761784694862,0.40936441,110450.0,110440.0,0.06404]
[1761784696664,0.72208441,110450.0,110440.0,0.05042]
[1761784696853,0.72208441,110450.0,110440.0,0.06404]
[1761784698558,0.88422129,110450.0,110440.0,0.05042]
[1761784698757,0.88422129,110450.0,110440.0,0.005]
[1761784698758,0.92422129,110450.0,110440.0,0.005]
[1761784702558,0.71572441,110450.0,110440.0,0.06404]
[1761784702753,0.87786129,110450.0,110440.0,0.05042]
[1761784704071,0.87786129,110450.0,110440.0,0.02827]
[1761784704254,0.87786129,110450.0,110440.0,0.05042]
[1761784704661,0.87786129,110450.0,110440.0,0.005]
[1761784704872,0.87786129,110450.0,110440.0,0.05042]
[1761784705269,0.87815985,110450.0,110440.0,0.05042]
[1761784705977,0.87815985,110450.0,110440.0,0.005]
[1761784706269,0.71572441,110450.0,110440.0,0.005]
[1761784706671,0.87815985,110450.0,110440.0,0.02818]
[1761784707271,0.87815985,110450.0,110440.0,0.04931]
[1761784707472,0.87815985,110450.0,110440.0,0.06231]
[1761784707664,0.87815985,110450.0,110440.0,0.04731]
[1761784707864,0.88015985,110450.0,110440.0,0.04731]
[1761784708162,0.56743985,110450.0,110440.0,0.04731]
[1761784708364,0.40500441,110450.0,110440.0,0.38518088]
[1761784708570,0.71780441,110450.0,110440.0,0.38518088]
[1761784708865,0.72480441,110450.0,110440.0,0.38218088]
[1761784709369,0.72380441,110450.0,110440.0,0.38218088]
[1761784710167,0.40900441,110450.0,110440.0,0.38218088]
[1761784710367,0.71680441,110450.0,110440.0,0.38218088]
[1761784710566,0.72080441,110450.0,110440.0,0.38218088]
[1761784711174,0.40800441,110450.0,110440.0,0.38218088]
[1761784711474,0.72080441,110450.0,110440.0,0.38218088]
[1761784713360,0.72080441,110450.0,110440.0,0.05731]
[1761784713561,0.72080441,110450.0,110440.0,0.38218088]
[1761784714163,0.40800441,110450.0,110440.0,0.38218088]
[1761784714360,0.72080441,110450.0,110440.0,0.38218088]
[1761784714974,0.04320441,110450.0,110440.0,0.47272488]
[1761784715174,0.04320441,110450.0,110440.0,0.99596032]
[1761784715175,0.00409441,110450.0,110440.0,0.99596032]
[1761784715469,0.74062453,110470.0,110460.0,0.05982]
[1761784715663,0.74062453,110470.0,110460.0,0.22225544]
[1761784715977,0.04262,110460.0,110450.0,0.05982]
[1761784716165,0.72829088,110460.0,110450.0,0.03655]
[1761784716479,0.04262,110450.0,110440.0,0.05908]
[1761784716683,0.87865544,110450.0,110440.0,0.02281]
[1761784717381,0.87865544,110450.0,110440.0,0.22225544]
[1761784718870,0.90299913,110450.0,110440.0,0.22225544]
[1761784719269,0.90599913,110450.0,110440.0,0.22225544]
[1761784719576,0.90699913,110450.0,110440.0,0.05982]
[1761784719882,0.04262,110440.0,110430.0,0.05908]
[1761784720068,0.72829088,110440.0,110430.0,0.05908]
[1761784720272,0.72829088,110440.0,110430.0,0.04608]
[1761784720273,0.73900088,110440.0,110430.0,0.04608]
[1761784720784,0.73900088,110440.0,110430.0,0.02281]
[1761784720969,0.58549867,110440.0,110430.0,0.02281]
[1761784721171,0.57656544,110440.0,110430.0,0.02281]
[1761784721370,0.57656544,110440.0,110420.0,0.06878954]
[1761784721371,0.04262,110430.0,110420.0,0.06878954]
[1761784721574,0.87865544,110430.0,110420.0,0.05504954]
[1761784721772,0.87865544,110430.0,110420.0,0.04608]
[1761784722072,0.71622,110430.0,110420.0,0.22225544]
[1761784722970,0.04262,110430.0,110420.0,0.39380928]
[1761784723166,0.35542,110430.0,110420.0,0.39380928]
[1761784723370,0.40342,110440.0,110430.0,0.05982]
[1761784723566,0.71622,110440.0,110430.0,0.22225544]
[1761784724381,0.87865544,110440.0,110430.0,0.05982]
[1761784724564,0.87865544,110440.0,110430.0,0.04608]
[1761784724974,1.06543457,110440.0,110420.0,0.18529384]
[1761784725178,0.56585544,110430.0,110420.0,0.20810384]
[1761784725380,0.56585544,110430.0,110420.0,0.23137384]
[1761784725687,0.40342,110430.0,110420.0,0.39380928]
[1761784725876,0.04262,110430.0,110420.0,0.39380928]
[1761784726076,0.04262,110430.0,110420.0,0.23137384]
[1761784726291,0.04262,110430.0,110420.0,0.0689384]
[1761784726591,0.40442,110430.0,110420.0,0.23137384]
[1761784726987,0.40442,110430.0,110420.0,0.39380928]
[1761784727689,0.40442,110430.0,110420.0,0.42605536]
[1761784727990,0.38322,110430.0,110420.0,0.42605536]
[1761784728179,0.3138,110430.0,110420.0,0.51661516]
[1761784728890,0.3138,110430.0,110420.0,0.87741516]
[1761784729785,0.001,110430.0,110420.0,0.88013516]
[1761784729986,0.001,110430.0,110420.0,0.78685536]
[1761784730188,0.001,110430.0,110420.0,0.78697021]
[1761784730386,0.02242,110430.0,110420.0,0.78697021]
[1761784730587,0.02242,110430.0,110420.0,0.87753001]
[1761784730784,0.001,110430.0,110420.0,0.87753001]
[1761784731301,0.001,110430.0,110420.0,1.19033001]
[1761784737394,0.42776369,110440.0,110430.0,0.04608]
[1761784737700,0.42776369,110440.0,110430.0,0.22225544]
[1761784738697,0.42876369,110440.0,110430.0,0.22225544]
[1761784738895,0.59119913,110440.0,110430.0,0.22225544]
[1761784740202,0.59119913,110440.0,110430.0,0.05982]
[1761784740700,0.5942918,110440.0,110430.0,0.05982]
[1761784740896,0.62683118,110440.0,110430.0,0.02281]
[1761784741086,0.78926662,110440.0,110430.0,0.02281]
[1761784741287,0.75672724,110440.0,110430.0,0.02281]
[1761784741500,0.04262,110430.0,110420.0,0.26373477]
[1761784741700,0.87865544,110430.0,110420.0,0.26373477]
[1761784742091,0.35542,110430.0,110420.0,0.42617021]
[1761784742297,0.71622,110430.0,110420.0,0.42617021]
[1761784742702,0.71622,110430.0,110420.0,0.10129933]
[1761784742902,0.71622,110430.0,110420.0,0.26373477]
[1761784743506,0.87865544,110430.0,110420.0,0.26373477]
[1761784744012,0.87965544,110430.0,110420.0,0.25461637]
[1761784744210,0.04698,110420.0,110410.0,0.06273404]
[1761784744509,0.74161309,110420.0,110410.0,0.06273404]
[1761784744700,0.73265088,110420.0,110410.0,0.06273404]
[1761784745107,0.73265088,110420.0,110410.0,0.03037311]
[1761784745407,0.75980724,110420.0,110410.0,0.03137311]
[1761784745802,0.86980724,110420.0,110410.0,0.03137311]
[1761784746202,1.03224268,110420.0,110410.0,0.03137311]
[1761784746516,1.60224268,110420.0,110410.0,0.03137311]
[1761784746807,1.43980724,110420.0,110410.0,0.03137311]
[1761784747015,1.34890744,110420.0,110410.0,0.03137311]
[1761784747198,1.51134288,110420.0,110410.0,0.03137311]
[1761784747403,0.37839088,110400.0,110390.0,0.03236093]
[1761784747612,1.41279088,110400.0,110390.0,0.03236093]
[1761784747817,2.03279088,110400.0,110390.0,0.03236093]
[1761784748612,2.03279088,110400.0,110390.0,0.03336093]
[1761784748810,1.43279088,110400.0,110390.0,0.03336093]
[1761784749617,1.43551088,110400.0,110390.0,0.03336093]
[1761784749823,1.59794632,110400.0,110390.0,0.001]
[1761784750026,2.19794632,110400.0,110390.0,0.001]
[1761784750218,1.43551088,110400.0,110390.0,0.001]
[1761784751019,0.04917,110390.0,110380.0,0.03245598]
[1761784751225,0.57240544,110390.0,110380.0,0.03245598]
[1761784751613,0.57240544,110390.0,110380.0,9.505e-05]
[1761784753522,0.57240544,110390.0,110380.0,0.04443505]
[1761784753824,0.57240544,110390.0,110380.0,0.02193505]
[1761784754324,0.40361,110390.0,110380.0,0.38310593]
[1761784754734,0.87892544,110390.0,110380.0,0.22067049]
[1761784755613,0.87892544,110390.0,110380.0,0.05823505]
[1761784755815,0.92415468,110390.0,110380.0,0.05823505]
[1761784756927,0.89971832,110390.0,110380.0,0.05823505]
[1761784758725,0.89971832,110390.0,110380.0,0.22067049]
[1761784760423,0.58683832,110390.0,110380.0,0.22067049]
[1761784760632,0.89975832,110390.0,110380.0,0.22067049]
[1761784760820,0.73732288,110390.0,110380.0,0.22067049]
[1761784761019,1.15734012,110390.0,110380.0,9.505e-05]
[1761784761229,0.0427,110370.0,110360.0,0.03575]
[1761784761427,0.51805544,110370.0,110360.0,0.04509]
[1761784762114,0.51805544,110370.0,110360.0,0.05889]
[1761784762314,0.51815049,110370.0,110360.0,0.05889]
[1761784762515,0.35571505,110370.0,110360.0,0.38376088]
[1761784762716,9.505e-05,110370.0,110360.0,0.47708998]
[1761784762917,0.31292,110380.0,110370.0,0.05889]
[1761784763127,0.31292,110380.0,110370.0,0.47436178]
[1761784763331,0.4045,110390.0,110380.0,0.05889]
[1761784763531,0.33465686,110390.0,110380.0,0.47435358]
[1761784763833,0.3608,110400.0,110390.0,0.05889]
[1761784764033,0.74085636,110410.0,110400.0,0.05889]
[1761784764333,0.74085636,110410.0,110400.0,0.22132544]
[1761784765032,0.9032918,110410.0,110400.0,0.05889]
[1761784765334,0.74085636,110410.0,110400.0,0.05889]
[1761784765820,0.74185636,110410.0,110400.0,0.05889]
[1761784766018,0.71742,110410.0,110400.0,0.05889]
[1761784766535,0.72042,110410.0,110400.0,0.05889]
[1761784768817,0.72042,110410.0,110400.0,0.04509]
[1761784769037,0.0427,110400.0,110390.0,0.05889]
[1761784769229,0.0427,110390.0,110380.0,0.05889]
[1761784769427,0.72078,110390.0,110380.0,0.04509]
[1761784769735,0.0427,110380.0,110370.0,0.05889]
[1761784770326,0.71642,110390.0,110380.0,0.05889]
[1761784770737,0.71842,110390.0,110380.0,0.05889]
[1761784771340,0.4055,110390.0,110380.0,0.05889]
[1761784771539,0.71838,110390.0,110380.0,0.05889]
[1761784772339,0.71638,110390.0,110380.0,0.05889]
[1761784773028,0.4035,110390.0,110380.0,0.05889]
[1761784773339,0.71838,110390.0,110380.0,0.05889]
[1761784773537,0.4055,110390.0,110380.0,0.05889]
[1761784773727,0.4055,110390.0,110380.0,0.03639]
[1761784773728,0.71842,110390.0,110380.0,0.03639]
[1761784773923,0.71842,110390.0,110380.0,0.05889]
[1761784774124,0.74285636,110390.0,110380.0,0.02259]
[1761784774535,0.74285636,110390.0,110380.0,0.05857]
[1761784775541,0.002,110390.0,110380.0,0.85051932]
[1761784775930,0.02298407,110390.0,110380.0,0.85323932]
[1761784776842,0.02098407,110390.0,110380.0,0.85323932]
[1761784778941,0.02098407,110390.0,110380.0,1.00193932]
[1761784779944,0.02098407,110390.0,110380.0,0.75992652]
[1761784780147,0.02098407,110390.0,110380.0,0.85051922]
[1761784781255,0.02098407,110390.0,110380.0,0.5099627]
[1761784782934,0.02098407,110390.0,110380.0,0.85051922]
[1761784784852,0.02098407,110390.0,110380.0,0.99921922]
[1761784787145,0.02098407,110390.0,110380.0,0.6586627]
[1761784787953,0.06355407,110390.0,110380.0,0.56807]
[1761784789153,0.06355407,110390.0,110380.0,0.6586627]
[1761784789456,0.06555407,110390.0,110380.0,0.6586627]
[1761784790153,0.06555407,110390.0,110380.0,0.2978627]
[1761784790351,0.06555407,110390.0,110380.0,0.20727]
[1761784790653,0.06555407,110390.0,110380.0,0.1491627]
[1761784792454,0.06555407,110390.0,110380.0,0.05857]
[1761784792855,0.76367043,110390.0,110380.0,0.05857]
[1761784793056,0.77003043,110390.0,110380.0,0.02259]
[1761784793352,0.78003043,110390.0,110380.0,0.02259]
[1761784793855,0.77003043,110390.0,110380.0,0.02259]
[1761784794247,0.76367043,110390.0,110380.0,0.05866]
[1761784794554,0.04257,110380.0,110370.0,0.05867]
[1761784794754,0.06355407,110380.0,110370.0,0.05867]
[1761784798854,0.06044,110370.0,110360.0,0.04836913]
[1761784799047,0.04905,110350.0,110340.0,0.01336913]
[1761784799252,0.04416,110330.0,110320.0,0.05835]
[1761784799452,0.40496,110330.0,110320.0,0.05835]
[1761784799848,0.40496,110340.0,110330.0,0.04487]
[1761784800050,0.40496,110340.0,110330.0,0.37215]
[1761784800359,0.41752,110340.0,110330.0,0.36702]
[1761784800552,0.38095,110340.0,110330.0,0.4576537]
[1761784800751,0.40985,110350.0,110340.0,0.05459]
[1761784800955,0.40496,110350.0,110340.0,0.1452155]
[1761784801252,0.02115,110350.0,110340.0,0.1479355]
[1761784801452,0.02115,110350.0,110340.0,0.05459]
[1761784801654,0.04416,110350.0,110340.0,0.05459]
[1761784802959,0.05772,110340.0,110330.0,0.04487]
[1761784803259,0.41852,110340.0,110330.0,0.04487]
[1761784803847,0.05772,110340.0,110330.0,0.04487]
[1761784805464,0.05972,110340.0,110330.0,0.04487]
[1761784806067,0.04616,110340.0,110330.0,0.05799]
[1761784806863,0.002,110340.0,110330.0,0.1513437]
[1761784807359,0.002,110340.0,110330.0,0.4652637]
[1761784807665,0.002,110340.0,110330.0,1.16662022]
[1761784808066,0.40403,110350.0,110340.0,0.1478455]
[1761784808263,0.04323,110350.0,110340.0,0.1478455]
[1761784808957,0.04323,110350.0,110340.0,0.49112202]
[1761784809559,0.04523,110350.0,110340.0,0.85192202]
[1761784809862,0.04523,110350.0,110340.0,0.5113655]
[1761784811163,0.002,110350.0,110340.0,0.5113655]
[1761784811355,0.002,110350.0,110340.0,0.85192202]
[1761784811562,0.002,110350.0,110340.0,0.41802]
[1761784811867,0.002,110350.0,110340.0,0.5086455]
[1761784812267,0.02385,110350.0,110340.0,0.5086455]
[1761784813763,0.04523,110350.0,110340.0,0.5086455]
[1761784815875,0.0671403,110350.0,110340.0,0.5086455]
[1761784816462,0.0239103,110350.0,110340.0,0.5086455]
[1761784816770,0.0239103,110350.0,110340.0,0.5113655]
[1761784817169,0.002,110350.0,110340.0,0.5113655]
[1761784817377,0.02391391,110350.0,110340.0,0.5113655]
[1761784817679,0.002,110350.0,110340.0,0.85192202]
[1761784818467,0.41838,110360.0,110350.0,0.04492]
[1761784818662,0.07949519,110360.0,110350.0,0.35868]
[1761784818861,0.06612519,110360.0,110350.0,0.4630273]
[1761784819273,0.06612519,110360.0,110350.0,0.37241]
[1761784819577,0.06612519,110360.0,110350.0,0.4630274]
[1761784819767,0.05758,110340.0,110330.0,1.1571701]
[1761784819970,0.05758,110340.0,110330.0,1.4709301]
[1761784820166,0.05758,110340.0,110330.0,1.06654]
[1761784820364,0.05758,110340.0,110330.0,1.3803]
[1761784820673,0.05758,110340.0,110330.0,1.06654]
[1761784820871,0.05758,110340.0,110330.0,1.4709338]
[1761784821262,0.04421,110340.0,110330.0,1.4709338]
[1761784821462,0.06613134,110340.0,110330.0,1.4709338]
[1761784822067,0.02192134,110340.0,110330.0,1.81421032]
[1761784822267,0.02247,110350.0,110340.0,0.1489556]
[1761784822469,0.02192416,110350.0,110340.0,0.5097556]
[1761784822677,0.02192416,110350.0,110340.0,0.5124756]
[1761784822874,0.02192416,110350.0,110340.0,0.5097556]
[1761784823180,0.04439416,110350.0,110340.0,0.5097556]
[1761784824272,0.02192416,110350.0,110340.0,0.5097556]
[1761784824880,0.02192416,110350.0,110340.0,0.5124756]
[1761784825081,0.02192416,110350.0,110340.0,0.5097556]
[1761784827276,0.02192416,110350.0,110340.0,0.7130878]
[1761784827576,0.02192416,110350.0,110340.0,0.7158078]
[1761784828380,0.02192416,110350.0,110340.0,0.8645078]
[1761784829977,0.02443636,110370.0,110360.0,0.1400091]
[1761784830167,0.02443636,110370.0,110360.0,0.8145291]
[1761784830780,0.02443636,110370.0,110360.0,0.8145691]
[1761784831772,0.02643636,110370.0,110360.0,0.8145691]
[1761784832381,0.06905636,110370.0,110360.0,0.4537291]
[1761784832683,0.42985636,110370.0,110360.0,0.4537291]
[1761784833792,0.42985636,110370.0,110360.0,0.4536891]
[1761784834082,0.42985636,110370.0,110360.0,0.4536491]
[1761784834378,0.06905636,110370.0,110360.0,0.4536491]
[1761784834583,0.04881099,110410.0,110400.0,0.05254]
[1761784834776,0.08899132,110440.0,110430.0,0.1361117]
[1761784834777,0.41882,110440.0,110430.0,0.1361117]
[1761784834984,0.05802,110440.0,110430.0,0.6550439]
[1761784835180,0.05802,110450.0,110440.0,0.04556]
[1761784835382,0.12313563,110450.0,110440.0,0.34864941]
[1761784835878,0.48393563,110460.0,110450.0,0.04556]
[1761784836075,0.48393563,110460.0,110450.0,0.5646522]
[1761784836590,0.48393563,110460.0,110450.0,0.36132]
[1761784837086,0.48393563,110460.0,110450.0,0.3394274]
[1761784837287,0.3618,110460.0,110450.0,0.6554274]
[1761784837480,0.001,110460.0,110450.0,1.0162274]
[1761784838475,0.02332,110460.0,110450.0,1.0162274]
[1761784839978,0.002,110460.0,110450.0,1.0162274]
[1761784840277,0.04611,110460.0,110450.0,1.0162274]
[1761784842586,0.04611,110460.0,110450.0,0.36124]
[1761784842587,0.40691,110460.0,110450.0,0.36124]
[1761784842888,0.04411,110450.0,110440.0,0.61881349]
[1761784843091,0.04411,110450.0,110440.0,0.93453349]
[1761784843589,0.04411,110450.0,110440.0,0.61881349]
[1761784843792,0.04411,110450.0,110440.0,0.93445349]
[1761784844389,0.04411,110450.0,110440.0,0.61881349]
[1761784844577,0.04411,110450.0,110440.0,0.93445349]
[1761784844783,0.41882,110470.0,110460.0,0.04556]
[1761784844983,0.41882,110470.0,110460.0,0.5644922]
[1761784846875,0.42082,110470.0,110460.0,0.5644922]
[1761784847590,0.42082,110470.0,110460.0,0.33786]
[1761784848291,0.42082,110470.0,110460.0,0.33778]
[1761784848689,0.42082,110470.0,110460.0,0.33774]
[1761784849275,0.42082,110470.0,110460.0,0.04556]
[1761784849476,0.42082,110470.0,110460.0,0.5643322]
[1761784849677,0.42082,110470.0,110460.0,0.2488922]
[1761784850178,0.42082,110470.0,110460.0,0.451487]
[1761784850383,0.42082,110470.0,110460.0,0.6613792]
[1761784850881,0.42082,110470.0,110450.0,0.36751]
[1761784850882,0.05802,110460.0,110450.0,0.3608]
[1761784851689,0.05802,110450.0,110440.0,0.66399689]
[1761784852590,0.05802,110450.0,110440.0,1.02479689]
[1761784852791,0.02132,110450.0,110440.0,1.22812909]
[1761784852992,0.41982,110460.0,110450.0,0.04556]
[1761784853290,0.05902,110460.0,110450.0,0.2488922]
[1761784853482,0.05802,110460.0,110450.0,0.6547874]
[1761784854288,0.05802,110460.0,110450.0,0.5642522]
[1761784854492,0.05902,110460.0,110450.0,0.5642522]
[1761784855395,0.12413563,110460.0,110450.0,0.5642522]
[1761784856304,0.12313563,110460.0,110450.0,0.5642522]
[1761784857201,0.12313563,110460.0,110450.0,0.6547874]
[1761784857498,0.05802,110460.0,110450.0,0.6547874]
[1761784859400,0.05802,110460.0,110450.0,0.5642522]
[1761784859595,0.05802,110460.0,110450.0,0.2488922]
[1761784859789,0.05802,110460.0,110450.0,0.6545474]
[1761784859996,0.48393563,110470.0,110460.0,0.04556]
[1761784860199,0.41882,110470.0,110460.0,0.3394192]
[1761784860589,0.05802,110470.0,110460.0,0.3394192]
[1761784861206,0.05902,110470.0,110460.0,0.3394192]
[1761784861810,0.48477006,110470.0,110460.0,0.3394192]
[1761784862302,0.12397006,110470.0,110460.0,0.3394192]
[1761784863404,0.05902,110470.0,110460.0,0.3394192]
[1761784864409,0.14037166,110470.0,110460.0,0.2488922]
[1761784865091,0.05902,110470.0,110460.0,0.2488922]
[1761784865291,0.41982,110470.0,110460.0,0.5638122]
[1761784865492,0.50117166,110470.0,110460.0,0.5638122]
[1761784866795,0.50117166,110470.0,110460.0,1.0221192]
[1761784866796,0.08235166,110470.0,110460.0,1.0221192]
[1761784867003,0.001,110470.0,110460.0,1.0221192]
[1761784867393,0.19524399,110480.0,110470.0,0.1424988]
[1761784867599,0.19524399,110480.0,110470.0,0.5491632]
[1761784867600,0.08135166,110480.0,110470.0,0.5491632]
[1761784867795,0.08135166,110480.0,110470.0,1.845831]
[1761784867996,0.3608,110490.0,110480.0,0.1357807]
[1761784868210,0.47469233,110500.0,110490.0,0.1423325]
[1761784868410,0.51936233,110500.0,110490.0,0.3456647]
[1761784868597,0.47469233,110500.0,110490.0,0.3456647]
[1761784868805,0.47469233,110510.0,110500.0,0.1357643]
[1761784869000,0.47469233,110510.0,110500.0,0.6610765]
[1761784869205,0.3608,110510.0,110500.0,0.6610765]
[1761784869707,0.48745233,110520.0,110500.0,0.6610765]
[1761784869708,0.39673,110520.0,110510.0,0.1357561]
[1761784869903,0.3608,110520.0,110510.0,0.35484223]
[1761784870102,0.53212233,110530.0,110520.0,0.04527]
[1761784870307,0.53212233,110530.0,110520.0,0.5636022]
[1761784870507,0.41823,110530.0,110520.0,0.36027]
[1761784871610,0.04467,110520.0,110510.0,0.03116393]
[1761784871803,0.51923211,110520.0,110510.0,0.57276613]
[1761784872412,0.40547,110520.0,110510.0,0.57276613]
[1761784872806,0.40647,110520.0,110510.0,0.57276613]
[1761784873006,0.40647,110520.0,110510.0,0.66325223]
[1761784873413,0.41919,110520.0,110510.0,0.57276613]
[1761784873606,0.41919,110520.0,110510.0,0.66325223]
[1761784874012,0.41919,110520.0,110510.0,0.66321223]
[1761784875916,0.41919,110520.0,110510.0,0.05431393]
[1761784876212,0.41919,110520.0,110510.0,0.36927393]
[1761784876418,0.41919,110520.0,110510.0,0.57260613]
[1761784877722,0.41919,110520.0,110510.0,0.66309223]
[1761784878522,0.41919,110520.0,110510.0,0.5635622]
[1761784879426,0.41919,110520.0,110510.0,0.57261711]
[1761784880023,0.41919,110520.0,110510.0,0.66310331]
[1761784881325,0.41919,110520.0,110510.0,0.5635622]
[1761784881727,0.41919,110520.0,110510.0,0.6540484]
[1761784882821,0.001,110520.0,110510.0,1.0215584]
[1761784883022,0.001,110520.0,110510.0,1.03076749]
[1761784884131,0.3608,110530.0,110520.0,0.140568]
[1761784884429,0.3608,110530.0,110520.0,0.3439002]
[1761784884622,0.3832,110530.0,110520.0,0.3439002]
[1761784885415,0.3852,110530.0,110520.0,0.48022961]
[1761784886339,0.3628,110530.0,110520.0,0.48022961]
[1761784887044,0.002,110530.0,110520.0,0.48022961]
[1761784888246,0.002,110530.0,110520.0,0.48294961]
[1761784888639,0.002,110530.0,110520.0,0.84374961]
[1761784889030,0.002,110530.0,110520.0,0.84102961]
[1761784889242,0.05959,110530.0,110520.0,0.79490961]
[1761784889541,0.0244,110530.0,110520.0,0.79490961]
[1761784890549,0.0244,110530.0,110520.0,1.15570961]
[1761784890949,0.002,110530.0,110520.0,1.15570961]
[1761784891444,0.002,110530.0,110520.0,0.816048]
[1761784891646,0.002,110530.0,110520.0,1.15570961]
[1761784892148,0.41839,110560.0,110550.0,0.1338334]
[1761784892441,0.41839,110560.0,110550.0,0.4484734]
[1761784892640,0.05759,110560.0,110550.0,0.4484734]
[1761784893239,0.05759,110560.0,110550.0,0.78813501]
[1761784893439,0.06059,110560.0,110550.0,0.78813501]
[1761784893840,0.003,110560.0,110550.0,0.79484501]
[1761784894938,0.003,110560.0,110550.0,0.79756501]
[1761784895353,0.003,110560.0,110550.0,0.79484501]
[1761784895546,0.003,110560.0,110550.0,0.79756501]
[1761784896047,0.41649,110580.0,110570.0,0.133867]
[1761784896251,0.41649,110580.0,110570.0,0.35811]
[1761784896654,0.41649,110580.0,110570.0,0.3670906]
[1761784896842,0.41649,110580.0,110570.0,0.4575276]
[1761784897146,0.41849,110580.0,110570.0,0.4575276]
[1761784898549,0.02339,110580.0,110570.0,0.80416921]
[1761784898740,0.02339,110580.0,110570.0,0.0524106]
[1761784898741,0.05777,110580.0,110570.0,0.0524106]
[1761784898936,0.41857,110580.0,110560.0,0.4050452]
[1761784899248,0.41657,110570.0,110560.0,0.04343]
[1761784899452,0.41657,110570.0,110560.0,0.35807]
[1761784899643,0.41657,110570.0,110560.0,0.69773161]
[1761784900038,0.41657,110570.0,110560.0,0.79705215]
[1761784901044,0.41757,110570.0,110560.0,0.79705215]
[1761784902150,0.41757,110570.0,110560.0,0.70660695]
[1761784902361,0.05577,110560.0,110550.0,0.4484836]
[1761784902555,0.05577,110560.0,110550.0,0.05230156]
[1761784903455,0.05577,110560.0,110550.0,0.14275516]
[1761784903958,0.05577,110560.0,110550.0,0.84321677]
[1761784904656,0.02139,110560.0,110550.0,0.84992677]
[1761784904857,0.68812,110570.0,110560.0,0.04343]
[1761784904858,0.73109,110570.0,110560.0,0.04343]
[1761784905070,0.73109,110570.0,110560.0,0.47353701]
[1761784906753,0.73109,110570.0,110560.0,0.1338754]
[1761784907863,0.73109,110570.0,110560.0,0.35791]
[1761784908952,0.73109,110570.0,110560.0,0.4483554]
[1761784909146,0.73109,110570.0,110560.0,0.35791]
[1761784909464,0.73109,110570.0,110560.0,0.4483554]
[1761784910352,0.73109,110570.0,110560.0,0.4726125]